bitfinex-derivatives/quotes_ETHF0:USTF0_20251203
["timestamp","ask_amount","ask_price","bid_price","bid_amount"]
[1764744984190,1.53548495,3066.3,3066.2,3.301]
[1764744984793,0.00258495,3066.3,3066.2,3.301]
[1764744985094,1.53548495,3066.3,3066.2,3.301]
[1764744985795,3.174,3065.9,3065.8,4.7644]
[1764744985982,3.174,3065.9,3065.8,6.5088]
[1764744986394,3.17658495,3066.3,3066.2,3.301]
[1764744987696,1.53548495,3066.3,3066.2,3.301]
[1764744987896,0.00258495,3066.3,3066.2,3.301]
[1764744988091,1.53548495,3066.3,3066.2,3.301]
[1764744988690,0.00258495,3066.3,3066.2,3.301]
[1764744991098,1.53548495,3066.3,3066.2,3.301]
[1764744991397,0.00258495,3066.3,3066.2,3.301]
[1764744992293,3.17658495,3066.3,3066.2,3.301]
[1764744992997,3.16118495,3066.3,3066.2,3.301]
[1764744993201,1.53548495,3066.3,3066.2,3.301]
[1764744993501,0.00258495,3066.3,3066.2,3.301]
[1764744993701,1.52848495,3066.3,3066.2,3.301]
[1764744993898,3.15418495,3066.3,3066.0,0.16304]
[1764744994202,3.1516,3066.1,3066.0,3.31284]
[1764744995498,3.90663198,3066.1,3066.0,3.1498]
[1764744995699,3.90663198,3066.1,3066.0,1.6003]
[1764744995893,3.1516,3065.9,3065.8,6.3576]
[1764744996498,3.1516,3065.9,3065.8,3.2078]
[1764744997705,3.1516,3065.9,3065.8,4.8082]
[1764744997907,5.0533169,3065.9,3065.8,3.2078]
[1764744998103,3.90695338,3065.9,3065.8,4.8082]
[1764744998302,3.90695338,3065.9,3065.8,6.3257]
[1764744999508,6.40318495,3066.3,3066.2,1.6004]
[1764744999804,7.15886397,3066.3,3066.2,1.6004]
[1764744999997,7.15886397,3066.3,3066.2,3.1179]
[1764745000194,3.96606397,3066.3,3066.2,3.1179]
[1764745000501,3.1928,3066.1,3066.0,3.1179]
[1764745000699,3.94847902,3066.1,3066.0,3.1179]
[1764745001900,2.37527902,3066.1,3066.0,4.0529]
[1764745002306,3.94847902,3066.1,3066.0,4.0529]
[1764745003205,0.75567902,3066.1,3066.0,4.0529]
[1764745003408,1.6196,3066.2,3066.1,3.1179]
[1764745003601,3.1928,3066.2,3066.1,1.6004]
[1764745004006,3.1928,3066.2,3066.1,3.1179]
[1764745004606,1.6196,3065.9,3065.8,6.3257]
[1764745005102,3.1928,3065.9,3065.8,6.3257]
[1764745006506,3.1928,3065.9,3065.8,3.2078]
[1764745006704,3.1928,3065.9,3065.8,4.8082]
[1764745007408,3.94724793,3065.9,3065.8,6.3257]
[1764745008309,2.37404793,3065.9,3065.8,6.3257]
[1764745008511,6.40318495,3066.3,3066.2,3.1179]
[1764745008710,3.1928,3065.9,3065.8,4.8082]
[1764745009306,3.1928,3065.9,3065.8,6.3257]
[1764745010609,1.6196,3065.9,3065.8,6.3257]
[1764745010816,3.1928,3065.9,3065.8,6.3257]
[1764745011711,1.6196,3065.9,3065.8,6.3257]
[1764745012015,3.1928,3065.9,3065.8,6.3257]
[1764745013110,3.1928,3065.9,3065.8,3.2078]
[1764745013308,3.94811049,3065.9,3065.8,4.8082]
[1764745014016,3.94811049,3065.9,3065.8,6.3257]
[1764745016319,2.37491049,3065.9,3065.8,6.3257]
[1764745016615,6.40318495,3066.3,3066.2,3.1179]
[1764745016818,7.15846186,3066.3,3066.2,3.1179]
[1764745017410,0.75786186,3066.3,3066.2,3.1179]
[1764745018615,1.62449387,3066.6,3066.5,4.0529]
[1764745018812,1.62449387,3066.6,3066.5,5.2232521]
[1764745018813,0.00489387,3066.6,3066.5,5.2232521]
[1764745019215,40.8,3067.5,3067.4,3.1179]
[1764745019516,2.37496014,3067.5,3067.4,3.1179]
[1764745019721,2.37872051,3067.5,3067.4,3.12120408]
[1764745019914,3.95192051,3067.5,3067.4,3.12120408]
[1764745020312,0.75912051,3067.5,3067.4,6.32900408]
[1764745020610,4.1302,3068.5,3068.4,1.6004]
[1764745021015,4.1302,3068.5,3068.0,7.2607]
[1764745021016,3.1928,3068.1,3068.0,7.2607]
[1764745021519,3.1928,3068.1,3067.6,0.16296]
[1764745021520,0.9374,3068.0,3067.6,4.88826]
[1764745021717,4.1302,3068.0,3067.9,3.1179]
[1764745022218,10.1302,3068.0,3067.6,3.2078]
[1764745022420,4.1302,3067.5,3067.4,0.00330408]
[1764745023320,4.1302,3067.5,3067.4,1.60370408]
[1764745023622,4.1302,3067.5,3067.4,0.00330408]
[1764745025023,3.1928,3067.5,3067.4,3.00590408]
[1764745025223,4.7044,3067.8,3067.7,3.0026]
[1764745025425,6.2217,3067.8,3067.7,3.0026]
[1764745025723,3.0139,3067.8,3067.7,3.0026]
[1764745026521,3.0139,3067.8,3067.7,6.2104]
[1764745026718,3.0139,3068.0,3067.9,3.0026]
[1764745026916,1.4966,3068.0,3067.9,3.0026]
[1764745027224,3.0139,3068.0,3067.9,3.0026]
[1764745027426,3.8707,3068.0,3067.9,1.435]
[1764745028319,3.8707,3068.0,3067.9,3.0026]
[1764745028826,3.8707,3068.0,3067.9,1.435]
[1764745029526,3.8707,3068.0,3067.7,3.2078]
[1764745029724,3.0139,3067.8,3067.7,6.2104]
[1764745030316,1.4966,3067.8,3067.7,6.2104]
[1764745031523,3.0139,3068.0,3067.9,3.0026]
[1764745032323,1.4966,3068.0,3067.9,3.0026]
[1764745032519,0.00299362,3068.1,3068.0,3.8867]
[1764745032520,1.49959362,3068.1,3068.0,3.8867]
[1764745032824,3.01689362,3068.1,3068.0,3.8867]
[1764745033022,3.01689362,3068.1,3068.0,3.0026]
[1764745033425,3.0139,3067.8,3067.7,6.2104]
[1764745034724,1.4966,3067.8,3067.7,6.2104]
[1764745034920,3.0139,3067.8,3067.7,1.435]
[1764745035125,0.8568,3068.0,3067.7,1.435]
[1764745035126,3.8707,3068.0,3067.9,1.435]
[1764745035324,0.8568,3068.0,3067.7,3.2078]
[1764745035519,3.0139,3067.8,3067.7,6.2104]
[1764745037122,3.0139,3067.8,3067.7,4.6428]
[1764745037327,1.4966,3067.5,3067.4,3.00590408]
[1764745037628,0.8568,3068.0,3067.5,3.8867]
[1764745037832,3.8707,3068.0,3067.9,1.435]
[1764745038322,3.8707,3068.0,3067.5,3.8867]
[1764745038323,1.4966,3067.6,3067.5,3.8867]
[1764745040430,0.8568,3068.0,3067.5,3.8867]
[1764745041229,3.01689362,3068.1,3068.0,1.435]
[1764745041426,1.4966,3067.6,3067.5,3.8867]
[1764745042028,3.0139,3067.6,3067.5,3.0026]
[1764745042217,3.0139,3067.6,3067.5,3.8867]
[1764745042218,1.4966,3067.6,3067.5,3.8867]
[1764745042825,3.0139,3067.6,3067.5,3.8867]
[1764745044131,3.8707,3067.5,3067.4,3.00590408]
[1764745045221,3.8707,3067.5,3067.4,1.43830408]
[1764745045533,3.0139,3067.5,3067.4,3.00590408]
[1764745046328,6.2217,3067.8,3067.7,1.435]
[1764745046525,3.0139,3067.6,3067.5,3.0026]
[1764745048133,1.4966,3067.6,3067.5,3.8867]
[1764745048328,3.0139,3067.6,3067.5,3.0026]
[1764745048834,3.8707,3067.5,3067.4,0.00330408]
[1764745049136,3.8707,3067.5,3067.1,0.00489387]
[1764745049137,3.0139,3067.2,3067.1,0.00489387]
[1764745049735,3.0139,3067.2,3066.9,3.2078]
[1764745049736,3.8707,3067.0,3066.9,3.2078]
[1764745049934,3.0139,3066.6,3066.5,4.6428]
[1764745050137,3.0139,3066.6,3066.5,4.64552079]
[1764745050332,3.0139,3066.6,3066.5,3.21052079]
[1764745050834,3.0139,3066.6,3066.5,4.64552079]
[1764745051638,3.0139,3066.6,3066.5,3.21052079]
[1764745051939,3.0139,3066.6,3066.5,4.64552079]
[1764745052135,3.0139,3066.6,3066.5,1.43772079]
[1764745052332,3.0139,3066.6,3066.5,0.00272079]
[1764745053738,3.0139,3066.6,3066.5,1.43772079]
[1764745054642,3.0139,3066.6,3066.5,0.00272079]
[1764745062648,3.0139,3066.6,3066.5,1.26282079]
[1764745062844,3.0139,3066.6,3066.5,0.00272079]
[1764745064940,3.0139,3066.6,3066.5,1.26282079]
[1764745067250,3.0139,3066.6,3066.5,2.56842079]
[1764745067450,3.0139,3066.6,3066.5,1.26282079]
[1764745068145,3.0139,3066.6,3066.5,0.00272079]
[1764745070248,3.0139,3066.6,3066.5,1.26282079]
[1764745071349,3.0139,3066.6,3066.5,2.56842079]
[1764745071545,1.3641,3066.6,3066.5,6.20762079]
[1764745073452,3.5105,3067.0,3066.9,1.2601]
[1764745073653,4.25889564,3067.0,3066.9,1.2601]
[1764745074554,4.25889564,3067.0,3066.5,3.64192079]
[1764745074854,3.40209564,3066.9,3066.8,1.2601]
[1764745075254,2.6537,3066.6,3066.5,6.20762079]
[1764745075752,2.6537,3066.6,3066.5,5.77622079]
[1764745077352,3.40344438,3066.6,3066.5,4.47062079]
[1764745077745,3.40344438,3066.6,3066.5,5.77622079]
[1764745083755,3.40344438,3066.6,3066.5,3.21052079]
[1764745083951,3.40344438,3066.6,3066.5,4.43682079]
[1764745084153,0.74974438,3066.6,3066.5,5.90552079]
[1764745084356,3.31814438,3066.6,3066.5,3.21052079]
[1764745084749,3.31814438,3066.6,3066.5,0.00272079]
[1764745085054,3.31814438,3066.6,3065.5,13.60308565]
[1764745085055,2.5684,3065.4,3065.3,5.7201]
[1764745085252,1.2686,3065.4,3065.3,5.7201]
[1764745085662,2.5684,3065.4,3065.3,5.7201]
[1764745085855,2.57129915,3065.4,3065.3,5.72325705]
[1764745086050,0.00289915,3065.4,3065.3,5.72325705]
[1764745086255,1.27149915,3065.4,3065.3,5.72325705]
[1764745086860,0.00289915,3065.4,3065.3,6.86708874]
[1764745088564,0.00289915,3065.4,3065.3,5.72325705]
[1764745089067,0.00289915,3065.4,3065.3,6.86708874]
[1764745091968,1.27149915,3065.4,3065.3,5.72325705]
[1764745092268,0.00289915,3065.4,3065.3,5.72325705]
[1764745093068,0.00289915,3065.4,3065.3,6.86708874]
[1764745093566,0.00289915,3065.4,3065.3,7.03016874]
[1764745094357,5.0174,3066.5,3066.4,1.2263]
[1764745094561,3.2078,3066.5,3066.4,2.5123]
[1764745094763,2.5684,3066.6,3066.5,3.2419]
[1764745094963,2.5684,3066.6,3066.5,1.2263]
[1764745095165,1.2686,3066.3,3066.2,5.7201]
[1764745095366,0.00360143,3066.3,3066.2,3.2078]
[1764745095874,0.00360143,3066.3,3066.2,5.7201]
[1764745097069,1.27220143,3066.3,3066.2,5.7201]
[1764745097567,0.00360143,3066.3,3066.2,5.7201]
[1764745098375,1.27220143,3066.3,3066.2,5.7201]
[1764745099474,2.57200143,3066.3,3066.2,5.7201]
[1764745099770,2.57200143,3066.3,3066.2,4.4341]
[1764745100174,2.57200143,3066.3,3066.2,5.7201]
[1764745100469,2.5684,3065.9,3065.8,4.4341]
[1764745100665,2.5684,3065.9,3065.8,5.7201]
[1764745104572,1.2686,3065.9,3065.8,5.7201]
[1764745105173,0.00360143,3066.3,3065.8,5.7201]
[1764745105475,3.32765203,3066.2,3066.1,1.2263]
[1764745105775,44.12765203,3066.2,3066.1,1.2263]
[1764745107576,2.5684,3065.9,3065.8,5.7201]
[1764745108177,1.2686,3065.9,3065.8,5.7201]
[1764745108670,0.00360143,3066.3,3065.8,5.7201]
[1764745108868,3.32788957,3066.2,3066.1,1.2263]
[1764745109171,3.32788957,3066.2,3066.1,2.5123]
[1764745109377,3.32788957,3066.2,3066.1,1.2263]
[1764745109574,3.32788957,3066.2,3066.1,2.5123]
[1764745109876,3.32788957,3066.2,3066.1,1.2263]
[1764745110871,3.32788957,3066.2,3066.1,2.5123]
[1764745112876,0.75948957,3066.2,3066.1,2.5123]
[1764745113073,3.30168957,3066.2,3066.1,2.5123]
[1764745113270,2.02808957,3066.2,3066.1,2.5123]
[1764745113678,0.75948957,3066.2,3066.1,2.5123]
[1764745114278,1.81868957,3066.2,3066.1,2.5123]
[1764745114579,3.09228957,3066.2,3066.1,2.5123]
[1764745114878,1.81868957,3066.2,3066.1,2.5123]
[1764745115881,1.06280143,3066.3,3066.2,2.2025]
[1764745116079,1.82350819,3066.3,3066.2,2.2025]
[1764745116580,0.76430819,3066.3,3066.2,2.2025]
[1764745116884,1.03790143,3066.3,3066.2,2.2025]
[1764745117777,2.11550143,3066.3,3066.2,2.2025]
[1764745117978,1.03790143,3066.3,3066.2,2.2025]
[1764745118381,0.00360143,3066.3,3066.2,2.2025]
[1764745118784,1.03790143,3066.3,3066.2,2.2025]
[1764745119883,0.00360143,3066.3,3066.2,2.2025]
[1764745120583,1.03790143,3066.3,3066.2,2.2025]
[1764745121782,2.11550143,3066.3,3066.2,2.2025]
[1764745121985,2.87644206,3066.3,3066.2,2.2025]
[1764745122173,2.1119,3066.2,3066.1,3.2078]
[1764745122378,2.1119,3066.2,3066.1,4.3354]
[1764745122584,2.87285413,3066.2,3066.1,5.3972]
[1764745123386,2.87285413,3066.2,3065.7,3.2078]
[1764745123592,0.00360143,3066.3,3065.7,5.3972]
[1764745123593,2.1119,3065.8,3065.7,5.3972]
[1764745123786,1.0343,3065.8,3065.7,5.3972]
[1764745126093,0.00360143,3066.3,3066.2,2.35243]
[1764745126390,2.47023239,3067.5,3066.5,2.8365]
[1764745126591,2.1119,3067.0,3066.9,5.3972]
[1764745126891,1.79228105,3067.0,3066.9,5.3972]
[1764745127092,0.75798105,3067.0,3066.9,5.3972]
[1764745127292,0.7607031,3067.0,3066.9,5.3972]
[1764745129189,0.00272205,3067.0,3066.9,5.3972]
[1764745132896,1.03702205,3067.0,3066.9,5.3972]
[1764745133094,0.00272205,3067.0,3066.9,5.3972]
[1764745134995,2.11462205,3067.0,3066.9,5.3972]
[1764745135196,0.00272205,3067.0,3066.9,5.3972]
[1764745136101,2.11462205,3067.0,3066.9,5.3972]
[1764745136288,2.1119,3066.7,3066.6,0.00489387]
[1764745136494,2.86744625,3066.7,3066.6,0.00489387]
[1764745136895,2.1119,3066.1,3066.0,4.3354]
[1764745137292,2.1119,3066.1,3066.0,5.3972]
[1764745137494,2.1119,3066.1,3066.0,3.2078]
[1764745138301,2.1119,3066.1,3066.0,5.3972]
[1764745139503,2.1119,3066.1,3066.0,4.3354]
[1764745140504,2.1119,3066.1,3066.0,5.3972]
[1764745141400,1.0343,3066.5,3066.4,2.1894]
[1764745141599,3.5535551,3066.5,3066.4,1.1276]
[1764745142605,3.5535551,3066.5,3066.0,3.7073]
[1764745142900,2.8677551,3066.4,3066.3,2.1894]
[1764745143107,1.0343,3066.4,3066.3,2.1894]
[1764745143403,5.2723,3066.6,3066.5,2.0053]
[1764745143603,6.02845965,3066.6,3066.5,2.0053]
[1764745143799,2.0645,3066.1,3066.0,5.7126]
[1764745143996,2.6426,3066.5,3066.4,2.0053]
[1764745144201,3.39881331,3066.5,3066.4,2.0053]
[1764745144901,1.71712205,3067.0,3066.9,0.9549]
[1764745145106,3.50935176,3067.0,3066.9,0.9549]
[1764745145600,2.06722205,3067.0,3066.9,2.0053]
[1764745146110,0.00272205,3067.0,3066.9,2.0053]
[1764745146896,1.03132205,3067.0,3066.9,2.0053]
[1764745150510,1.03132205,3067.0,3066.9,2.0053]
[1764745150808,0.00272205,3067.0,3066.9,2.0053]
[1764745151100,2.06722205,3067.0,3066.9,2.0053]
[1764745151709,1.03132205,3067.0,3066.9,2.0053]
[1764745151896,2.06722205,3067.0,3066.9,2.0053]
[1764745152206,2.64532205,3067.0,3066.9,2.0053]
[1764745152602,2.64532205,3067.0,3066.9,0.9549]
[1764745152797,2.0645,3066.9,3066.8,4.1627]
[1764745152995,2.0645,3066.9,3066.8,5.2131]
[1764745155915,1.03132205,3067.0,3066.9,2.0053]
[1764745156613,0.00272205,3067.0,3066.9,2.0053]
[1764745156812,2.06722205,3067.0,3066.9,2.0053]
[1764745157214,1.03132205,3067.0,3066.9,2.0053]
[1764745159712,2.06722205,3067.0,3066.9,0.9549]
[1764745159912,2.06722205,3067.0,3066.8,3.2078]
[1764745159913,2.0645,3066.5,3066.4,5.2131]
[1764745160112,1.0286,3066.5,3066.4,5.2131]
[1764745160318,0.58082205,3067.0,3066.4,5.2131]
[1764745160517,0.74544064,3066.9,3066.4,5.2131]
[1764745160713,0.74544345,3066.8,3066.4,5.2131]
[1764745161017,2.0645,3066.8,3066.7,0.9549]
[1764745161218,2.8100741,3066.8,3066.7,0.9549]
[1764745162019,1.7741741,3066.8,3066.7,2.0053]
[1764745162221,2.8100741,3066.8,3066.7,2.0053]
[1764745162518,2.8100741,3066.8,3066.7,0.9549]
[1764745163015,2.6426,3066.5,3066.4,4.1627]
[1764745164515,2.6426,3066.5,3066.4,5.2131]
[1764745165622,2.0645,3066.5,3066.4,5.2131]
[1764745165813,1.0286,3066.5,3066.4,5.2131]
[1764745166817,5.2723,3066.9,3066.8,0.9549]
[1764745167014,6.01794429,3066.9,3066.8,0.9549]
[1764745167416,2.0645,3066.6,3066.5,2.0053]
[1764745167719,2.6426,3066.5,3066.4,3.2078]
[1764745168518,2.6426,3066.5,3066.0,3.2078]
[1764745168725,1.0286,3066.1,3066.0,5.469]
[1764745171231,2.0645,3066.1,3066.0,3.1627]
[1764745171628,2.0645,3066.1,3066.0,4.2131]
[1764745172130,3.7859,3066.5,3066.0,4.469]
[1764745172329,2.8104119,3066.4,3066.3,2.0053]
[1764745172626,2.8104119,3066.4,3066.3,0.9549]
[1764745173128,3.2078,3066.9,3066.3,2.0053]
[1764745173432,5.2375,3066.9,3066.8,1.9958]
[1764745173631,5.98350577,3066.9,3066.8,1.9958]
[1764745173833,5.98350577,3066.9,3066.8,1.0082]
[1764745174830,5.98350577,3066.9,3066.8,1.9958]
[1764745175137,2.77559646,3066.9,3066.8,1.0082]
[1764745176031,2.77559646,3066.9,3066.8,1.9958]
[1764745178032,0.74589646,3066.9,3066.8,1.9958]
[1764745178231,2.03242205,3067.0,3066.9,1.9958]
[1764745178438,0.00272205,3067.0,3066.9,1.9958]
[1764745180333,2.53072205,3067.0,3066.9,1.9799]
[1764745180639,1.98162205,3067.0,3066.9,1.9799]
[1764745180939,1.01062205,3067.0,3066.9,1.9799]
[1764745182142,1.98162205,3067.0,3066.9,1.9799]
[1764745183044,0.8951,3066.7,3066.6,5.1371]
[1764745183340,0.55182205,3067.0,3066.6,5.1371]
[1764745183543,2.41792205,3067.0,3066.9,1.9293]
[1764745184439,2.41792205,3067.0,3066.5,3.6965]
[1764745184740,0.8951,3066.6,3066.5,5.6258]
[1764745185044,0.55182205,3067.0,3066.5,5.6258]
[1764745185344,0.55182205,3067.0,3066.5,5.1371]
[1764745185345,1.8661,3066.6,3066.5,5.1371]
[1764745185540,1.8661,3066.6,3066.5,3.2078]
[1764745185946,1.8661,3066.6,3066.5,4.1654]
[1764745188246,1.8661,3066.6,3066.5,5.1371]
[1764745188447,1.86882205,3067.0,3066.9,1.9293]
[1764745188640,3.1637343,3067.0,3066.9,0.9576]
[1764745189451,0.8951,3066.6,3066.5,5.633]
[1764745189637,0.55182205,3067.0,3066.5,5.633]
[1764745189833,2.41792205,3067.0,3066.9,0.9576]
[1764745190060,3.16380064,3067.0,3066.9,0.9576]
[1764745190552,3.16380064,3067.0,3066.9,1.9293]
[1764745191045,2.61470064,3067.0,3066.9,1.9293]
[1764745191549,5.82250064,3067.0,3066.9,1.9293]
[1764745192244,3.95640064,3067.0,3066.9,1.9293]
[1764745192747,5.82250064,3067.0,3066.9,1.9293]
[1764745196148,1.75583239,3067.8,3067.7,0.9576]
[1764745196446,0.971,3067.8,3067.3,3.2078]
[1764745196653,1.8661,3067.6,3067.5,1.9293]
[1764745196944,1.8661,3067.6,3067.5,0.9576]
[1764745197149,2.4152,3067.5,3067.4,1.9293]
[1764745197353,2.4152,3067.5,3067.4,1.93311565]
[1764745197847,5.623,3067.5,3067.4,0.96141565]
[1764745198049,5.623,3067.5,3067.4,1.93311565]
[1764745199648,5.623,3067.5,3067.4,0.96141565]
[1764745200151,5.623,3067.5,3067.4,0.00381565]
[1764745200349,6.76657769,3067.5,3067.4,0.00381565]
[1764745200649,1.8661,3067.1,3067.0,0.00489387]
[1764745200849,0.8951,3067.1,3067.0,1.93419387]
[1764745201241,1.8661,3067.1,3067.0,0.00489387]
[1764745201444,0.8951,3067.1,3067.0,1.93419387]
[1764745201644,0.8951,3067.1,3067.0,1.93649931]
[1764745202045,1.8661,3067.1,3067.0,1.93649931]
[1764745202450,1.8661,3067.1,3067.0,0.96479931]
[1764745202649,3.00967769,3067.1,3067.0,0.00719931]
[1764745202846,6.21747769,3067.1,3067.0,0.00719931]
[1764745203254,1.9004,3066.3,3066.2,5.0173]
[1764745203442,5.1082,3066.7,3066.6,0.9066]
[1764745203648,1.9004,3067.0,3066.9,1.8095]
[1764745204346,1.9004,3067.0,3066.9,1.81220275]
[1764745204553,2.44,3067.0,3066.9,1.81220275]
[1764745205053,0.9131,3067.0,3066.9,1.81220275]
[1764745205254,44.0078,3067.1,3067.0,2.3682]
[1764745205553,3.2078,3067.1,3067.0,3.51177769]
[1764745206053,5.1082,3067.1,3067.0,3.51177769]
[1764745206253,5.1082,3067.1,3067.0,1.8095]
[1764745207247,5.1082,3067.1,3067.0,0.9066]
[1764745207451,5.1082,3067.1,3067.0,1.8095]
[1764745208159,5.85126907,3067.1,3067.0,1.8095]
[1764745208559,5.85126907,3067.1,3067.0,0.9066]
[1764745208760,2.44,3067.0,3066.9,0.00270275]
[1764745208951,3.18306907,3067.0,3066.9,1.81220275]
[1764745209151,3.18306907,3067.0,3066.9,0.90930275]
[1764745209547,3.18306907,3067.0,3066.9,0.00270275]
[1764745212656,3.18306907,3067.0,3066.9,0.90930275]
[1764745212857,3.18306907,3067.0,3066.9,0.00270275]
[1764745213656,3.18306907,3067.0,3066.9,0.90930275]
[1764745213857,3.18306907,3067.0,3066.9,0.00270275]
[1764745215562,3.18306907,3067.0,3066.9,0.90930275]
[1764745215760,2.64346907,3067.0,3066.9,1.81220275]
[1764745216365,3.18306907,3067.0,3066.9,0.00270275]
[1764745219367,0.74306907,3067.0,3066.9,1.81220275]
[1764745219667,4.1209,3067.5,3067.4,1.8095]
[1764745219867,1.65943969,3067.5,3067.4,1.8095]
[1764745220265,2.64673969,3067.5,3067.4,1.8095]
[1764745220570,3.18633969,3067.5,3067.4,0.9066]
[1764745220769,3.18633969,3067.5,3067.4,1.8095]
[1764745221156,3.18633969,3067.5,3067.1,3.2078]
[1764745221361,1.9004,3067.2,3067.1,5.0173]
[1764745222068,0.9131,3067.2,3067.1,5.0173]
[1764745222268,2.44,3067.5,3067.4,1.8095]
[1764745222569,1.65922831,3067.5,3067.4,1.8095]
[1764745223771,2.64652831,3067.5,3067.4,1.8095]
[1764745224168,1.9004,3067.5,3067.4,1.8095]
[1764745225977,1.90950038,3067.6,3067.5,1.8095]
[1764745226175,2.65495196,3067.6,3067.5,1.8095]
[1764745226869,1.66765196,3067.6,3067.5,1.8095]
[1764745227173,0.00910038,3067.6,3067.5,3.51099967]
[1764745227768,0.92220038,3067.6,3067.5,3.51099967]
[1764745227974,0.92220038,3067.6,3067.5,2.3682]
[1764745228174,1.90950038,3067.6,3067.5,1.8095]
[1764745229577,0.00910038,3067.6,3067.5,3.51099967]
[1764745231873,0.00910038,3067.6,3067.5,2.3682]
[1764745231874,1.90950038,3067.6,3067.5,2.3682]
[1764745232278,1.90950038,3067.6,3067.5,0.9066]
[1764745232578,1.90950038,3067.6,3067.1,3.37078]
[1764745232779,0.00910038,3067.6,3067.5,1.8095]
[1764745233075,0.92220038,3067.6,3067.5,2.3682]
[1764745233578,1.83870038,3067.6,3067.5,2.3682]
[1764745234571,0.92220038,3067.6,3067.5,2.3682]
[1764745236280,0.00910038,3067.6,3067.5,2.3682]
[1764745238881,0.82330038,3067.6,3067.5,2.3682]
[1764745239892,0.85480038,3067.6,3067.5,2.3682]
[1764745240386,0.00910038,3067.6,3067.5,2.3682]
[1764745241884,1.62590038,3067.6,3067.5,2.3682]
[1764745242074,1.62590038,3067.6,3067.5,1.8095]
[1764745243388,0.85480038,3067.6,3067.5,1.8095]
[1764745243689,0.8457,3067.3,3067.2,1.79318]
[1764745244389,2.1104,3067.5,3067.4,1.6302]
[1764745244886,2.1104,3067.5,3067.2,0.16298]
[1764745244887,1.6168,3067.3,3067.2,1.79318]
[1764745245279,1.6168,3067.3,3067.1,3.2078]
[1764745245280,1.6168,3067.2,3067.1,3.2078]
[1764745245486,2.1104,3067.0,3066.9,0.82660275]
[1764745245686,2.85445543,3067.0,3066.9,0.82660275]
[1764745246188,0.74405543,3067.0,3066.9,1.63290275]
[1764745246388,2.85445543,3067.0,3066.9,0.82660275]
[1764745246592,2.85445543,3067.0,3066.9,0.00270275]
[1764745247277,2.85445543,3067.0,3066.2,3.2078]
[1764745247278,1.6168,3066.3,3066.2,3.2078]
[1764745248393,1.6168,3066.3,3066.2,3.21117804]
[1764745248691,3.25319967,3066.5,3066.4,0.8239]
[1764745249091,1.6168,3066.3,3066.2,4.84137804]
[1764745253294,1.6168,3066.3,3066.2,1.63357804]
[1764745254184,0.8457,3066.3,3066.2,1.63357804]
[1764745254582,3.2078,3066.8,3066.7,1.6302]
[1764745254792,4.0535,3066.8,3066.7,1.6302]
[1764745254992,4.8246,3066.8,3066.7,1.6302]
[1764745255192,4.8246,3066.8,3066.7,0.8239]
[1764745255388,3.2078,3066.8,3066.2,1.63357804]
[1764745255595,4.8246,3066.8,3066.7,0.8239]
[1764745256195,4.8246,3066.8,3066.7,1.6302]
[1764745257089,4.8246,3066.8,3066.7,0.8239]
[1764745257484,4.8246,3066.8,3066.2,0.00337804]
[1764745257995,4.8246,3066.8,3066.7,0.8239]
[1764745258292,4.8246,3066.8,3066.2,0.00337804]
[1764745259695,4.8246,3066.8,3066.7,0.8239]
[1764745259895,4.8246,3066.8,3066.2,0.00337804]
[1764745260097,4.8246,3066.8,3066.7,0.8239]
[1764745260597,4.8246,3066.8,3066.2,0.00337804]
[1764745261397,0.8457,3066.3,3066.2,1.63357804]
[1764745261995,1.6168,3066.3,3066.2,0.00337804]
[1764745262295,1.6168,3066.3,3066.2,0.82727804]
[1764745262995,0.8457,3066.5,3066.4,1.6001]
[1764745263190,3.2078,3066.8,3066.4,1.6001]
[1764745263386,3.2078,3066.8,3066.7,1.5718]
[1764745263593,3.2078,3067.3,3066.7,1.5718]
[1764745263894,4.757,3067.3,3067.2,1.5718]
[1764745264494,4.757,3067.3,3067.2,0.7956]
[1764745265596,4.757,3067.3,3066.5,4.90548394]
[1764745266196,4.757,3067.3,3067.2,0.7956]
[1764745267400,4.757,3067.3,3067.2,1.5718]
[1764745268398,5.500436,3067.3,3067.2,1.5718]
[1764745269103,4.757,3067.3,3067.2,0.7956]
[1764745269315,5.50011657,3067.3,3066.5,4.90548394]
[1764745269600,4.757,3067.3,3066.5,4.90548394]
[1764745269801,4.757,3067.3,3067.2,0.7956]
[1764745269995,5.50019929,3067.3,3066.5,4.90548394]
[1764745270199,4.757,3067.3,3067.2,0.7956]
[1764745270401,5.50036421,3067.3,3067.2,1.5718]
[1764745270900,5.50036421,3067.3,3067.2,0.7956]
[1764745271106,5.50036421,3067.3,3066.5,4.90548394]
[1764745271305,4.757,3067.3,3066.5,4.90548394]
[1764745272702,0.74373238,3067.2,3066.5,3.73562]
[1764745272906,0.7431,3066.6,3066.5,5.1444]
[1764745273504,0.7431,3066.6,3065.9,0.00489387]
[1764745273505,0.16303,3066.3,3065.9,0.00489387]
[1764745273804,3.2078,3066.0,3064.5,1.65306394]
[1764745274005,41.54510377,3065.9,3065.8,1.5718]
[1764745274207,0.74510377,3065.9,3065.8,1.5718]
[1764745274404,1.75583239,3066.7,3066.5,0.4832]
[1764745274702,44.79982335,3066.6,3066.5,0.48656515]
[1764745276601,44.79982335,3066.6,3065.5,0.4832]
[1764745276602,51.96978477,3066.6,3065.5,0.4832]
[1764745276809,3.2078,3065.6,3065.5,2.055]
[1764745277005,3.99992083,3065.6,3065.5,2.055]
[1764745277610,3.99992083,3065.6,3065.5,1.28125151]
[1764745277999,3.99992083,3065.6,3065.5,2.05745151]
[1764745278397,3.2078,3065.6,3065.5,1.28125151]
[1764745278801,3.2078,3065.6,3065.5,2.05745151]
[1764745279208,3.99919775,3065.6,3065.5,0.48565151]
[1764745279412,3.99889545,3065.6,3065.5,0.00245151]
[1764745279615,3.99889545,3065.6,3065.2,0.00489387]
[1764745279616,22.92089545,3065.6,3065.2,0.00489387]
[1764745279798,1.16986394,3064.8,3064.5,0.4832]
[1764745280004,3.2078,3064.6,3064.5,0.4832]